Cogmind - Beta 15 @@@ ROGUE MODE // 2025.08.04 @ 21:13:05 Player: winnking222 Result: Destroyed by S-27 Virus with Autogun Performance ------------- Evolutions (4) 2000 Regions Visited (13) 2600 Robots Destroyed (176) 880 Value Destroyed (5105) 5105 Prototype IDs (24) 480 Alien Tech Used (0) 0 Bonus (874) 874 TOTAL SCORE: 11939 Bonus ------- High Alert Combat Kills 410 Follower Combat Kills 218 Met Data Miner 300 Friendly Fire -54 Cogmind --------- Core Integrity 0/850 Matter 123/300 Energy 99/100 System Corruption 0% Temperature Cool (0) Movement Core (50) Location -5/Proximity Caves Parts ------- > --- POWER (2) -------- (None) > --- PROPULSION (4) --- (None) > --- UTILITY (6) ------ (None) > --- WEAPON (3) ------- (None) > --- INVENTORY (5) ---- Power Amplifier Cryofiber Web Matter Compressor (163) System Guard System Guard Peak State ------------ > --- POWER ------------ Improved Deuterium Engine Improved Deuterium Engine > --- PROPULSION ------- Makeshift Leg Makeshift Leg Armored Leg Cooled VTOL Module > --- UTILITY ---------- Large Storage Unit Improved Trap Scanner Advanced Targeting Computer Advanced Targeting Computer Advanced Targeting Computer Improved Shield Generator > --- WEAPON ----------- Plasma Cannon Magnetic Acceleration Cannon > --- INVENTORY -------- Angular Momentum Engine Compact Wheel Power Amplifier Cryofiber Web Matter Compressor Advanced Terrain Scan Processor Transmission Jammer System Guard Long-range Missile Launcher Heavy Pick [Rating: 58] Favorites ----------- Power Improved Deuterium Engine Engine Improved Deuterium Engine Power Core Light Nuclear Core Propulsion Aluminum Leg Leg Aluminum Leg Wheel Compact Wheel Hover Unit Gravmag System Flight Unit Cooled VTOL Module Utility Advanced Targeting Computer Device Improved Heat Sink Storage Small Storage Unit Processor Advanced Targeting Computer Hackware Hacking Suite Protection Hardened Light Armor Plating Weapon Heavy Assault Rifle Energy Gun Pulse Rifle Energy Cannon Heavy Particle Cannon Ballistic Gun Heavy Assault Rifle Ballistic Cannon Magnetic Acceleration Cannon Launcher Long-range Missile Launcher Piercing Weapon Heavy Pick Build | -11 -10 -10 -9 -9 -8 -7 -7 -7 -6 -6 -6 -6 -5 ------- Run | Yrd Mat Min Mat Sto Mat Fac Low Low Fac Low Low Dat Pro Slots Evolved 8 | . . . 2 . 2 2 . . 2 . . . . Power 1 | . . . . . . . . . 1 . . . . Propulsion 2 | . . . 1 . . 1 . . . . . . . Utility 4 | . . . . . 2 1 . . 1 . . . . Weapon 1 | . . . 1 . . . . . . . . . . Parts Attached 122 | 7 . 15 18 18 30 8 . 4 8 10 4 . . Power 11 | 1 . 3 2 1 2 . . . . 2 . . . Engine 10 | 1 . 2 2 1 2 . . . . 2 . . . Core 1 | . . 1 . . . . . . . . . . . Reactor . | . . . . . . . . . . . . . . Propulsion 36 | 2 . 5 5 6 12 1 . . 1 3 1 . . Treads . | . . . . . . . . . . . . . . Leg 25 | 2 . 4 5 6 5 . . . . 3 . . . Wheel 2 | . . 1 . . . . . . . . 1 . . Hover 5 | . . . . . 4 1 . . . . . . . Flight 4 | . . . . . 3 . . . 1 . . . . Utility 29 | 2 . 3 3 2 5 3 . 2 6 3 . . . Device 11 | 1 . 3 . . 3 1 . . 1 2 . . . Storage 3 | 1 . . . 1 . . . . . 1 . . . Processor 7 | . . . . . 1 1 . . 5 . . . . Hackware 1 | . . . 1 . . . . . . . . . . Protection 7 | . . . 2 1 1 1 . 2 . . . . . Artifact . | . . . . . . . . . . . . . . Weapon 46 | 2 . 4 8 9 11 4 . 2 1 2 3 . . Energy Gun 11 | 2 . 2 4 1 2 . . . . . . . . Energy Cannon 3 | . . 1 1 . . . . . . 1 . . . Ballistic Gun 28 | . . . 3 8 9 4 . 2 1 . 1 . . Ballistic Cannon 1 | . . . . . . . . . . 1 . . . Launcher 2 | . . 1 . . . . . . . . 1 . . Special Weapon . | . . . . . . . . . . . . . . Impact Weapon . | . . . . . . . . . . . . . . Slashing Weapon . | . . . . . . . . . . . . . . Piercing Weapon 1 | . . . . . . . . . . . 1 . . Special Melee Weapon . | . . . . . . . . . . . . . . Unidentified Prototypes 10 | . . . 3 1 3 2 . . 1 . . . . Parts Lost 45 | . 1 6 5 3 8 . 1 10 2 . 6 . 3 Power 5 | . . 2 1 . . . . . . . 2 . . Propulsion 16 | . . 2 3 1 3 . 1 3 . . 2 . 1 Utility 8 | . . . . . 2 . . 3 1 . 1 . 1 Weapon 16 | . 1 2 1 2 3 . . 4 1 . 1 . 1 Highest Loss Streak 7 | . 1 4 3 1 5 . 1 7 1 . 3 . 2 To Critical Strikes 1 | . . . 1 . . . . . . . . . . Average Backups 7 | 5 7 7 7 8 8 9 8 6 5 8 9 8 7 Power 1 | . 1 . 1 . 1 1 2 1 1 . 1 1 . Propulsion 1 | 3 2 1 . . 2 3 . . . . . . . Utility 4 | . 1 3 3 5 3 3 4 3 3 5 6 6 6 Weapon 1 | . 2 1 1 1 1 1 2 . 1 1 1 1 . Tool/Special . | . . . . . . . . . . . . . . Unused Backups 22 | . 2 2 2 1 2 4 . 2 . . . . 7 Power 5 | . . . 1 . 1 1 . 1 . . . . 1 Propulsion 3 | . 2 . . . . 1 . . . . . . . Utility 10 | . . 1 1 . 1 . . 1 . . . . 6 Weapon 4 | . . 1 . 1 . 2 . . . . . . . Tool/Special . | . . . . . . . . . . . . . . Average Slot Usage (%) 84 | . 100 94 93 99 97 93 96 48 32 79 78 66 55 Engine 6 | . 14 3 5 10 9 7 7 4 . 9 8 . . Core 2 | . . 9 5 . . . . . . . . . . Leg 18 | . 28 26 26 32 19 . . . . 16 15 6 5 Hover 3 | . . . . . 6 26 26 2 . . . . . Flight 1 | . . . . . . . . . . 6 6 6 5 Device 6 | . 14 14 8 . 10 11 7 1 . 10 6 6 5 Storage 8 | . 14 14 11 11 9 7 7 4 . 4 6 6 5 Processor 7 | . . . . . 4 9 15 8 28 22 20 20 18 Protection 4 | . . . 2 10 10 7 7 4 . . . . . Energy Gun 5 | . 28 13 22 . 2 . . . . . . . . Energy Cannon 2 | . . 11 1 3 1 . . . . 4 2 . . Ballistic Gun 12 | . . . 6 29 23 22 23 21 2 . 1 . . Peak Build Rating 58 | 7 7 18 22 20 39 51 50 46 28 58 58 39 39 Average Rating 26 | 4 6 15 18 18 27 44 48 24 16 49 47 39 34 On Entrance 26 | . 7 6 18 19 17 37 50 46 10 18 58 39 39 Naked Turns 35 | . . . . . . . . . . . . . 35 Heaviest Build 62 | 14 14 22 28 33 37 33 33 49 6 62 62 34 34 Greatest Support 56 | 20 20 27 33 33 36 45 45 36 7 56 56 16 16 Greatest Overweight (x) 16 | 3 . 1 2 1 9 . . 16 1 1 3 2 2 Average Overweight (x) . | . . . . . . . . 3 . . 1 2 1 Largest Inventory Capacity 15 | 8 8 8 8 10 10 10 10 10 5 15 15 15 15 Average Capacity 9 | 7 8 8 8 9 10 10 10 8 5 12 15 15 13 Most Carried 12 | 8 8 8 8 10 10 10 9 10 5 12 11 8 9 Average Carried 7 | 5 7 7 7 8 8 9 8 6 5 8 9 8 7 Final Capacity 15 | 8 8 8 8 10 10 10 10 5 5 15 15 15 5 Final Carried 10 | 6 7 8 8 8 10 8 9 5 5 10 8 8 5 Class Distribution -------------------- 23% | Gunner 14% | Derelict-Mutant 13% | Mutant 13% | Scavenger-Tank 12% | Scavenger-Mutant 10% | Scavenger-Gunner 9% | Tank Dominant Class ---------------- Mutant | -10/Materials Scavenger-Mutant | -10/Mines Scavenger-Gunner | -9/Materials Tank | -9/Storage Scavenger-Tank | -8/Materials Gunner | -7/Factory Gunner | -7/Lower Caves Gunner | -7/Lower Caves Mutant | -6/Factory Derelict-Mutant | -6/Lower Caves Derelict-Mutant | -6/Lower Caves Derelict-Mutant | -6/Data Miner Derelict-Mutant | -5/Proximity Caves Resources | -11 -10 -10 -9 -9 -8 -7 -7 -7 -6 -6 -6 -6 -5 ----------- Run | Yrd Mat Min Mat Sto Mat Fac Low Low Fac Low Low Dat Pro Matter Collected 4602 | 270 . 265 441 972 1111 390 187 355 . 427 105 . 79 Remotely . | . . . . . . . . . . . . . . Salvage Created 6556 | 120 . 414 1219 1798 1812 446 352 240 . 15 80 . 60 Parts 349 | 7 . 16 77 89 84 23 24 14 . 2 4 . 9 Haulers Intercepted 10 | . . . 3 3 1 3 . . . . . . . Recyclers Shooed 7 | 1 . 1 1 1 3 . . . . . . . . Parts Field Recycled . | . . . . . . . . . . . . . . Retrieved Matter . | . . . . . . . . . . . . . . Parts Self-Destructed 49 | . . . . . . . 18 20 . 2 3 . 6 Prevented . | . . . . . . . . . . . . . . Kills | -11 -10 -10 -9 -9 -8 -7 -7 -7 -6 -6 -6 -6 -5 ------- Run | Yrd Mat Min Mat Sto Mat Fac Low Low Fac Low Low Dat Pro Combat Hostiles Destroyed 136 | . . 14 28 29 31 5 8 5 . 2 7 . 7 Melee 1 | . . . . . . . . . . . 1 . . Guns 104 | . . 4 26 25 31 5 8 5 . . . . . Cannons 13 | . . 3 . 4 . . . . . 2 4 . . AOE 18 | . . 7 2 . . . . . . . 2 . 7 Classes Destroyed 17 | 2 . 3 5 4 . . 1 1 . . . . 1 Worker 9 | . . . . 3 4 2 . . . . . . . Builder 3 | . . 2 . . 1 . . . . . . . . Tunneler 4 | 3 . . 1 . . . . . . . . . . Hauler 10 | . . . 3 3 1 3 . . . . . . . Recycler 13 | 1 . 1 3 4 4 . . . . . . . . Operator 3 | . . . 2 1 . . . . . . . . . Watcher 6 | . . . 2 2 2 . . . . . . . . Swarmer 36 | . . . 11 4 3 . 3 3 . 2 4 . 6 Grunt 57 | . . 6 11 12 18 4 4 . . . 2 . . Brawler 2 | . . . . 2 . . . . . . . . . Duelist 5 | . . . . 1 3 . . . . . 1 . . Protector 1 | . . . . 1 . . . . . . . . . Sentry 24 | . . . 6 9 7 1 . 1 . . . . . Hunter 1 | . . . . . . . . . . . . . 1 Behemoth 1 | . . . . . . . . 1 . . . . . Assembled 8 | . . 8 . . . . . . . . . . . Mutant 1 | . . . . . . . 1 . . . . . . Best Kill Streak 8 | 4 . 8 7 5 8 6 3 3 . 2 3 . 4 Combat Bots Only 6 | . . 6 4 4 6 4 3 3 . 2 3 . 4 Max Kills in Single Turn 4 | 1 . 4 2 2 3 1 1 1 . 1 1 . 3 Gunslinging 1 | . . . . 1 1 . . . . . . . . Exploded 3 | . . 3 2 . . . . . . . 1 . 3 Melee 1 | . . . . . . . . . . . 1 . . Uniques/NPCs Destroyed . | . . . . . . . . . . . . . . Combat | -11 -10 -10 -9 -9 -8 -7 -7 -7 -6 -6 -6 -6 -5 -------- Run | Yrd Mat Min Mat Sto Mat Fac Low Low Fac Low Low Dat Pro Hostile Shots Fired 820 | . 18 74 107 99 105 49 36 119 61 13 72 . 67 Missed 254 | . 5 22 27 22 30 22 12 46 31 1 12 . 24 Hits 566 | . 13 52 80 77 75 27 24 73 30 12 60 . 43 Melee 25 | . . 4 . 10 6 . . . . . 5 . . Projectile 541 | . 13 48 80 67 69 27 24 73 30 12 55 . 43 AOE 3 | . . 3 . . . . . . . . . . . Critical Strikes 14 | . . 1 4 5 1 . . 1 . . 2 . . Part Disruptions 3 | . . 2 . 1 . . . . . . . . . Damage Taken 8436 | . 164 878 869 1184 1267 259 348 1362 202 134 1037 . 732 Core 1747 | . 35 197 129 84 141 65 38 201 109 36 226 . 486 Absorbed by Shields 77 | . . . . . . . . . . 53 24 . . Ignored by Resistances 84 | . . . . . . . . 84 . . . . . Core Remaining (%) 56 | 100 . 7 . 46 74 . . 56 . . . . . Volleys Fired 454 | 12 4 43 81 100 86 26 15 39 5 9 24 . 10 Largest 3 | 2 2 2 3 3 3 3 3 3 1 1 3 . 1 Hottest 189 | 90 90 150 189 114 139 84 84 84 25 44 147 . 43 Shots Fired 1076 | 23 8 56 194 269 255 78 45 95 5 9 29 . 10 Gun 947 | 23 8 23 187 237 243 78 45 95 5 . 3 . . Cannon 104 | . . 24 6 32 12 . . . . 9 21 . . Launcher 25 | . . 9 1 . . . . . . . 5 . 10 Special . | . . . . . . . . . . . . . . Kinetic 785 | . . . 59 237 235 78 45 95 5 9 22 . . Thermal 266 | 23 8 47 134 32 20 . . . . . 2 . . Explosive 25 | . . 9 1 . . . . . . . 5 . 10 Electromagnetic . | . . . . . . . . . . . . . . Robot Hit Streak 37 | 9 2 8 13 13 12 10 37 23 7 5 9 . 7 Robot Miss Streak 6 | 2 2 2 3 5 6 5 1 5 . 1 3 . 1 Penetration Max . | . . . . . . . . . . . . . . Secondary Targets 18 | . . . 3 7 4 1 3 . . . . . . Max Gunslinging Chain 1 | . . . 1 1 1 1 1 . . . . . . Shots Hit Robots 701 | 17 3 34 117 149 172 51 36 76 5 7 25 . 9 Core Hits 312 | 5 1 35 49 64 83 20 15 14 2 2 11 . 11 Critical Kills 4 | . . . . 2 1 1 . . . . . . . Critical Parts Destroyed 4 | . . . . 1 3 . . . . . . . . Critical Strikes 16 | . . . 7 3 4 1 . . . . 1 . . Burn 7 | . . . 7 . . . . . . . . . . Meltdown 1 | . . . . . 1 . . . . . . . . Destroy 7 | . . . . 3 3 1 . . . . . . . Impale 1 | . . . . . . . . . . . 1 . . Melee Attacks 3 | . . . . . . . . . . . 3 . . Impact . | . . . . . . . . . . . . . . Slashing . | . . . . . . . . . . . . . . Piercing 3 | . . . . . . . . . . . 3 . . Sneak Attacks . | . . . . . . . . . . . . . . Combat Hostiles . | . . . . . . . . . . . . . . Follow-up Attacks . | . . . . . . . . . . . . . . Damage Inflicted 14622 | 196 46 1272 2066 2438 3096 1023 638 1433 84 209 1179 . 942 Guns 10727 | 196 34 227 1942 2157 2952 1023 638 1433 84 . 41 . . Cannons 1502 | . . 400 25 281 144 . . . . 209 443 . . Explosions 2311 | . . 640 99 . . . . . . . 630 . 942 Melee 65 | . . . . . . . . . . . 65 . . Ramming 17 | . 12 5 . . . . . . . . . . . Kinetic 9409 | . . . 593 2157 2815 1023 638 1433 84 209 457 . . Thermal 2820 | 196 34 627 1374 281 281 . . . . . 27 . . Explosive 2311 | . . 640 99 . . . . . . . 630 . 942 Electromagnetic . | . . . . . . . . . . . . . . Impact . | . . . . . . . . . . . . . . Slashing . | . . . . . . . . . . . . . . Piercing 65 | . . . . . . . . . . . 65 . . Highest Corruption 3 | . 1 1 1 3 . . . . . . . . . Average Corruption 1 | . 1 1 1 1 . . . . . . . . . Corruption Purged . | . . . . . . . . . . . . . . Corruption Blocked . | . . . . . . . . . . . . . . Effects 15 | . . 7 2 6 . . . . . . . . . Message Errors 1 | . . 1 . . . . . . . . . . . Matter Fused 2 | . . 1 1 . . . . . . . . . . Heat Flow Errors 4 | . . 2 . 2 . . . . . . . . . Energy Discharges 3 | . . 1 . 2 . . . . . . . . . Data Loss (minor) 4 | . . 2 1 1 . . . . . . . . . Misfires 1 | . . . . 1 . . . . . . . . . Overload Shots . | . . . . . . . . . . . . . . Overflow Damage 123 | . . 20 . . . . . . . 18 34 . 51 Projectiles 23 | . . . . . . . . . . 18 5 . . Explosions 77 | . . 20 . . . . . . . . 6 . 51 Melee 23 | . . . . . . . . . . . 23 . . Knockbacks 2 | . . . . . . . . . . . 2 . . Impact . | . . . . . . . . . . . . . . Kinetic 2 | . . . . . . . . . . . 2 . . Secondary . | . . . . . . . . . . . . . . Self-Inflicted Damage 70 | . . 21 . . . . . . . . . . 49 Shots 2 | . . 1 . . . . . . . . . . 1 Rammed . | . . . . . . . . . . . . . . Targets Rammed 6 | . 4 2 . . . . . . . . . . . Kicked 6 | . 4 2 . . . . . . . . . . . Crushed . | . . . . . . . . . . . . . . Highest Temperature 397 | 130 72 207 352 397 97 113 55 69 . . 189 . . Average Temperature 70 | 47 36 57 95 84 28 45 20 27 . . 83 . . Received Heat Transfer 2102 | . 90 305 294 375 522 99 66 204 33 . 90 . 24 Effects 8 | . . . 2 6 . . . . . . . . . Shutdowns 1 | . . . . 1 . . . . . . . . . Energy Bleed 5 | . . . 2 3 . . . . . . . . . Short Circuit 1 | . . . . 1 . . . . . . . . . Damage (minor) 1 | . . . . 1 . . . . . . . . . Siege Activations . | . . . . . . . . . . . . . . Martial Activations . | . . . . . . . . . . . . . . Shielding Activations . | . . . . . . . . . . . . . . Robots Disrupted . | . . . . . . . . . . . . . . Combat Hostiles . | . . . . . . . . . . . . . . Robots Corrupted . | . . . . . . . . . . . . . . Combat Hostiles . | . . . . . . . . . . . . . . Parts Fried . | . . . . . . . . . . . . . . Impact Corruptions . | . . . . . . . . . . . . . . Robots Melted 2 | . . . 1 . 1 . . . . . . . . Combat Hostiles . | . . . . . . . . . . . . . . Parts Melted 15 | 2 . 4 7 1 1 . . . . . . . . Heat Transferred 6254 | 521 87 1147 3441 490 518 . . . . . 50 . . Parts Sabotaged . | . . . . . . . . . . . . . . Parts Stolen . | . . . . . . . . . . . . . . Parts Stripped . | . . . . . . . . . . . . . . Power Chain Reactions . | . . . . . . . . . . . . . . Alert | -11 -10 -10 -9 -9 -8 -7 -7 -7 -6 -6 -6 -6 -5 ------- Run | Yrd Mat Min Mat Sto Mat Fac Low Low Fac Low Low Dat Pro Maximum Alert Level 3 | . . . 1 2 3 2 . . . . . . . Low Security (%) 49 | 100 100 100 67 14 . . . . 100 . . . . Level 1 26 | . . . 32 51 15 79 . . . . . . . Level 2 23 | . . . . 34 82 20 . . . . . . . Level 3 . | . . . . . 2 . . . . . . . . Level 4 . | . . . . . . . . . . . . . . Level 5 . | . . . . . . . . . . . . . . High Security . | . . . . . . . . . . . . . . Max Security . | . . . . . . . . . . . . . . Peak Influence 704 | 5 10 100 377 673 704 492 . . 45 . . . . Initial 317 | . . . . 157 273 317 . . 30 . . . . Average 228 | 1 . 20 158 360 494 327 . . 8 . . . . Influence Increases 4486 | 20 10 270 864 1040 917 335 195 135 75 125 220 . 280 Destroy 0b10 Robot/C 2680 | . . 120 560 640 640 140 140 100 . 40 140 . 160 Destroy 0b10 Robot/NC 270 | 20 . 15 55 70 75 35 . . . . . . . Destroy Leader 658 | . . 30 160 180 150 48 10 20 . 10 20 . 30 Allied During Kill 48 | . . . . 26 11 11 . . . . . . . Trap Triggered on 0b10 20 | . . . . 20 . . . . . . . . . Successful Hack 96 | . 10 . 20 28 10 28 . . . . . . . Disable Machine 210 | . . 60 30 60 15 45 . . . . . . . Destroy Structure 54 | . . 30 9 1 1 13 . . . . . . . Partial Spotted 30 | . . . . . 15 15 . . . . . . . Lose Combat Pursuer 420 | . . 15 30 15 . . 45 15 75 75 60 . 90 Influence Decreases 4336 | 20 10 270 491 764 868 551 395 368 89 111 251 18 130 Entered New Map 1268 | . . . . 216 376 381 179 55 19 14 10 18 . Time Decay 2665 | 20 10 257 441 498 392 170 206 233 70 97 181 . 90 Lost Part 343 | . . 13 50 30 80 . 10 80 . . 60 . 20 Lost Ally 60 | . . . . 20 20 . . . . . . . 20 Squads Dispatched 20 | . 1 1 5 5 4 3 . . 1 . . . . Investigation 7 | . . 1 . 1 2 2 . . 1 . . . . Extermination . | . . . . . . . . . . . . . . Reinforcement 8 | . 1 . 5 1 . 1 . . . . . . . Assault 3 | . . . . 3 . . . . . . . . . Garrison 2 | . . . . . 2 . . . . . . . . Intercept . | . . . . . . . . . . . . . . Searches Triggered . | . . . . . . . . . . . . . . Construction Impeded . | . . . . . . . . . . . . . . Haulers Reinforced 1 | . . . . . . 1 . . . . . . . Active Scanning Responses . | . . . . . . . . . . . . . . Cargo Convoy Interrupts . | . . . . . . . . . . . . . . Stealth | -11 -10 -10 -9 -9 -8 -7 -7 -7 -6 -6 -6 -6 -5 --------- Run | Yrd Mat Min Mat Sto Mat Fac Low Low Fac Low Low Dat Pro Distress Signals 10 | . 1 . 3 2 3 1 . . . . . . . Communications Jammed . | . . . . . . . . . . . . . . Distress Signals . | . . . . . . . . . . . . . . Times Spotted 217 | . 9 22 43 38 38 13 10 6 6 3 11 . 18 Peak Tracking Total 10 | . 5 10 5 8 4 4 5 3 6 4 4 . 9 Tactical Retreats 15 | . . 1 2 1 . . 3 1 2 2 2 . 1 Traps | -11 -10 -10 -9 -9 -8 -7 -7 -7 -6 -6 -6 -6 -5 ------- Run | Yrd Mat Min Mat Sto Mat Fac Low Low Fac Low Low Dat Pro Traps Triggered 5 | . . . 1 3 1 . . . . . . . . Indirectly . | . . . . . . . . . . . . . . Trap Hack Attempts . | . . . . . . . . . . . . . . Triggered . | . . . . . . . . . . . . . . Disarmed . | . . . . . . . . . . . . . . Reprogrammed 5 | . . . . 5 . . . . . . . . . Reused 2 | . . . . 2 . . . . . . . . . Traps Extracted . | . . . . . . . . . . . . . . Installed . | . . . . . . . . . . . . . . Triggered 2 | . . . . 2 . . . . . . . . . Machines | -11 -10 -10 -9 -9 -8 -7 -7 -7 -6 -6 -6 -6 -5 ---------- Run | Yrd Mat Min Mat Sto Mat Fac Low Low Fac Low Low Dat Pro Machines Disabled 15 | . . 4 2 4 1 3 1 . . . . . . Max in Single Turn 4 | . . 4 1 1 1 . 1 . . . . . . Garrison Access 3 | . . . . 1 1 . . . 1 . . . . Machines Repaired . | . . . . . . . . . . . . . . Machines Dismantled . | . . . . . . . . . . . . . . Machines Sabotaged . | . . . . . . . . . . . . . . Overloaded Fab Kills . | . . . . . . . . . . . . . . Hacking | -11 -10 -10 -9 -9 -8 -7 -7 -7 -6 -6 -6 -6 -5 --------- Run | Yrd Mat Min Mat Sto Mat Fac Low Low Fac Low Low Dat Pro Machines Accessed 36 | . 2 1 5 10 6 6 . . 2 . . 4 . Terminals 23 | . 2 . 4 9 5 3 . . . . . . . Fabricators 2 | . . . . . . 1 . . 1 . . . . Repair Stations . | . . . . . . . . . . . . . . Recycling Units . | . . . . . . . . . . . . . . Scanalyzers 3 | . . . 1 . . 2 . . . . . . . Garrison Access 3 | . . . . 1 1 . . . 1 . . . . Total Hacks 114 | . 7 1 13 26 19 13 . . 3 . . 32 . Successful 73 | . 3 1 7 12 11 4 . . 3 . . 32 . Failed 41 | . 4 . 6 14 8 9 . . . . . . . Catastrophic 5 | . . . . 1 . 4 . . . . . . . Database Lockouts . | . . . . . . . . . . . . . . Manual 46 | . 5 . 11 10 15 5 . . . . . . . Terminals 66 | . 7 . 11 24 18 6 . . . . . . . Fabricators 4 | . . . . . . 2 . . 2 . . . . Repair Stations . | . . . . . . . . . . . . . . Recycling Units . | . . . . . . . . . . . . . . Scanalyzers 7 | . . . 2 . . 5 . . . . . . . Garrison Access 4 | . . . . 2 1 . . . 1 . . . . Terminal Hacks 45 | . 2 1 1 7 1 1 . . . . . 32 . Record 11 | . . . . . . . . . . . . 11 . Part Schematic 11 | . . . . . . . . . . . . 11 . Robot Schematic 7 | . . . . . . . . . . . . 7 . Prototype ID Bank 5 | . 1 . . . 1 . . . . . . 3 . Open Door 3 | . . 1 . 2 . . . . . . . . . Locate Traps 2 | . . . . 1 . 1 . . . . . . . Disarm Traps 1 | . . . . 1 . . . . . . . . . Reprogram Traps 1 | . . . . 1 . . . . . . . . . Hauler Manifests 2 | . . . 1 1 . . . . . . . . . Zone Layout 2 | . 1 . . 1 . . . . . . . . . Fabricator Hacks 2 | . . . . . . . . . 2 . . . . Load Schematic 1 | . . . . . . . . . 1 . . . . Build 1 | . . . . . . . . . 1 . . . . Repair Station Hacks . | . . . . . . . . . . . . . . Recycling Unit Hacks . | . . . . . . . . . . . . . . Scanalyzer 5 | . . . 2 . . 3 . . . . . . . Insert Component 3 | . . . 1 . . 2 . . . . . . . Analyze 2 | . . . 1 . . 1 . . . . . . . Garrison Access Hacks 3 | . . . . 1 1 . . . 1 . . . . Seal Access 3 | . . . . 1 1 . . . 1 . . . . Unauthorized Hacks 18 | . 1 . 4 4 9 . . . . . . . . Terminals 18 | . 1 . 4 4 9 . . . . . . . . Track 1 | . . . . . 1 . . . . . . . . Botnet 10 | . 1 . 3 2 4 . . . . . . . . Operators 1 | . . . . . 1 . . . . . . . . Skim 6 | . . . 1 2 3 . . . . . . . . Fabricators . | . . . . . . . . . . . . . . Repair Stations . | . . . . . . . . . . . . . . Recycling Units . | . . . . . . . . . . . . . . Scanalyzers . | . . . . . . . . . . . . . . Garrison Access . | . . . . . . . . . . . . . . Data Cores Recovered 1 | . . . . 1 . . . . . . . . . Used . | . . . . . . . . . . . . . . Hacking Detections 20 | . 1 . 4 5 4 5 . . 1 . . . . Full Trace Events 8 | . 1 . . 3 1 2 . . 1 . . . . Feedback Events 1 | . 1 . . . . . . . . . . . . Corruption 1 | . 1 . . . . . . . . . . . . Feedback Blocked . | . . . . . . . . . . . . . . Robot Schematics Acquired 7 | . . . . . . . . . . . . 7 . Robots Built . | . . . . . . . . . . . . . . Authchips . | . . . . . . . . . . . . . . Time . | . . . . . . . . . . . . . . Total Robot Build Rating . | . . . . . . . . . . . . . . Part Schematics Acquired 13 | . . . 1 . . 1 . . . . . 11 . Parts Built 1 | . . . . . . . . . 1 . . . . Authchips . | . . . . . . . . . . . . . . Time 134 | . . . . . . . . . 134 . . . . Total Part Build Rating 4 | . . . . . . . . . 4 . . . . Parts Repaired . | . . . . . . . . . . . . . . Time . | . . . . . . . . . . . . . . Parts Recycled . | . . . . . . . . . . . . . . Recycled Matter . | . . . . . . . . . . . . . . Retrieved Matter . | . . . . . . . . . . . . . . Retrieved Components . | . . . . . . . . . . . . . . Parts Scanalyzed 2 | . . . 1 . . 1 . . . . . . . Part Schematics Acquired 2 | . . . 1 . . 1 . . . . . . . Parts Damaged . | . . . . . . . . . . . . . . Bothacking | -11 -10 -10 -9 -9 -8 -7 -7 -7 -6 -6 -6 -6 -5 ------------ Run | Yrd Mat Min Mat Sto Mat Fac Low Low Fac Low Low Dat Pro Used RIF Installer . | . . . . . . . . . . . . . . Robots Hacked . | . . . . . . . . . . . . . . Non-combat . | . . . . . . . . . . . . . . Combat . | . . . . . . . . . . . . . . Robot Hacks Applied . | . . . . . . . . . . . . . . Relay Couplers Released . | . . . . . . . . . . . . . . Fabnet Peak Effective % . | . . . . . . . . . . . . . . Robots Rewired 1 | . . . . . . 1 . . . . . . . Allies Hacked . | . . . . . . . . . . . . . . Hacks Repelled . | . . . . . . . . . . . . . . Allies | -11 -10 -10 -9 -9 -8 -7 -7 -7 -6 -6 -6 -6 -5 -------- Run | Yrd Mat Min Mat Sto Mat Fac Low Low Fac Low Low Dat Pro Total Allies 4 | . . . . 2 . 1 . . . . . . 1 Largest Group 2 | . . . . 2 1 1 . . . . . . 1 Highest-Rated Group 96 | . . . . 62 26 32 . . . . . . 96 Highest-Rated Ally 96 | . . . . 31 26 32 . . . . . . 96 Total Orders . | . . . . . . . . . . . . . . Ally Attacks 50 | . . . . 21 21 4 . . . . . . 4 Total Damage 963 | . . . . 313 315 292 . . . . . . 43 Kills 13 | . . . . 4 4 4 . . . . . . 1 Allies Corrupted . | . . . . . . . . . . . . . . Allies Melted . | . . . . . . . . . . . . . . Intel | -11 -10 -10 -9 -9 -8 -7 -7 -7 -6 -6 -6 -6 -5 ------- Run | Yrd Mat Min Mat Sto Mat Fac Low Low Fac Low Low Dat Pro Active Infowar (turns) 1756 | 7 199 100 . . . 2 . . . 540 524 102 282 Traps 1448 | . . . . . . . . . . 540 524 102 282 Seismic 306 | 7 199 100 . . . . . . . . . . . Jamming 2 | . . . . . . 2 . . . . . . . Robot Analysis Total . | . . . . . . . . . . . . . . Derelict Logs Recovered 8 | . . 2 . . . . 1 1 . 2 2 . . Drone Launches . | . . . . . . . . . . . . . . Drone Recoveries . | . . . . . . . . . . . . . . Exploration | -11 -10 -10 -9 -9 -8 -7 -7 -7 -6 -6 -6 -6 -5 ------------- Run | Yrd Mat Min Mat Sto Mat Fac Low Low Fac Low Low Dat Pro Turns Passed 8328 | 123 199 1102 1220 1327 929 342 420 832 312 574 524 102 322 Spaces Moved 5582 | 57 133 560 735 697 471 426 716 329 404 504 284 79 187 Core 581 | 26 . . . . 1 . . 217 266 . . . 71 Treads . | . . . . . . . . . . . . . . Legs 2723 | 31 133 556 638 697 247 . . . . 205 129 . 87 Wheels 364 | . . 4 97 . . . . . . . 155 79 29 Hover 1466 | . . . . . 212 426 716 112 . . . . . Flight 448 | . . . . . 11 . . . 138 299 . . . Fastest Speed 32 | 50 120 90 110 120 52 48 48 50 32 35 130 130 50 Average Speed 113 | 123 120 167 120 125 113 50 50 217 48 104 160 130 159 Slowest Speed 850 | 200 120 190 260 190 500 52 52 850 100 203 203 130 260 Overloaded Moves 7 | . . . . . . . . . 7 . . . . Propulsion Burnouts . | . . . . . . . . . . . . . . Robots Hopped . | . . . . . . . . . . . . . . Potential Cave-ins 2 | . . 2 . . . . . . . . . . . Cave-ins Triggered . | . . . . . . . . . . . . . . Exploration Rate (%) 51 | 5 41 93 64 85 39 13 90 51 16 67 46 70 35 Regions Visited 13 Branch Regions 8 Pre-discovered Areas 2 | . . 1 . . . . . . . . . 1 . Known Exits Taken 4 | . . . 1 . . . 1 . . 1 1 . . Unknown Exits Taken 9 | 1 1 1 . 1 1 1 . 1 1 . . 1 . Scrap Searched 12 | . . 1 . . . . 5 1 . 4 . . 1 Spaces Dug . | . . . . . . . . . . . . . . Terrain Destroyed 160 | . . 37 6 . . . . . . 2 44 . 71 Melee . | . . . . . . . . . . . . . . Projectile 14 | . . 8 1 . . . . . . 2 3 . . AOE 146 | . . 29 5 . . . . . . . 41 . 71 Terrain Rammed . | . . . . . . . . . . . . . . Walls Destroyed . | . . . . . . . . . . . . . . Machines Disabled . | . . . . . . . . . . . . . . Actions | -11 -10 -10 -9 -9 -8 -7 -7 -7 -6 -6 -6 -6 -5 --------- Run | Yrd Mat Min Mat Sto Mat Fac Low Low Fac Low Low Dat Pro Total 6742 | 86 164 667 908 954 676 516 743 380 514 541 317 78 198 Wait 365 | . 19 27 36 108 31 32 12 1 92 7 . . . Move 5569 | 56 132 559 734 696 470 425 715 328 403 503 283 78 187 Hop . | . . . . . . . . . . . . . . Pick Up 95 | 11 3 11 15 6 24 8 1 2 . 11 2 . 1 Fast Attach 41 | 2 . . 6 3 12 4 . 1 9 4 . . . Attach 47 | 5 . 7 7 4 10 . . 4 . 6 4 . . Detach . | . . . . . . . . . . . . . . Swap 64 | . . 12 12 20 15 5 . . . . . . . Drop 96 | . 2 6 17 17 28 14 . 5 5 1 1 . . Fire 454 | 12 4 43 81 100 86 26 15 39 5 9 24 . 10 Melee 3 | . . . . . . . . . . . 3 . . Ram . | . . . . . . . . . . . . . . Kick 6 | . 4 2 . . . . . . . . . . . Crush . | . . . . . . . . . . . . . . Escape Stasis . | . . . . . . . . . . . . . . Rewire 2 | . . . . . . 2 . . . . . . . Trap . | . . . . . . . . . . . . . . Miscellaneous . | . . . . . . . . . . . . . . Route ------- -11/Scrapyard -10/Materials (discovered 2 exits: *Min x2) -10/Mines (discovered 4 exits: *Mat x2 / [*Exi] / [*Sub]) -9/Materials (discovered 5 exits: *Mat x2 / [*Min] / *Sto x2) -9/Storage -8/Materials -7/Factory -7/Lower Caves -7/Lower Caves -6/Factory -6/Lower Caves -6/Lower Caves (discovered 2 exits: [*Fac] / *Dat) -6/Data Miner -5/Proximity Caves History --------- Turn | Location | Event 5 | -11/Scrapyard | Discovered new exit (range 16) 124 | -11/Scrapyard | Entered Materials 245 | -10/Materials | Discovered new exit (range 16) 305 | -10/Materials | Discovered new exit (range 14) 313 | -10/Materials | Build established: Mutant 323 | -10/Materials | Entered Mines 326 | -10/Mines | Met a Derelict bent on vengeance 366 | -10/Mines | Met a Derelict shopkeep closing up shop 406 | -10/Mines | Assembled infested the area 411 | -10/Mines | Assisted by a Guerilla fighting off Assembled 490 | -10/Mines | Core integrity fell below 50% 542 | -10/Mines | Lost 4 parts (1p2n1w) 565 | -10/Mines | Core integrity fell below 20% 619 | -10/Mines | Discovered new exit (range 15) 854 | -10/Mines | Build established: Scavenger-Mutant 880 | -10/Mines | Deemed a non-threat by the Exiles lab entrance 880 | -10/Mines | Discovered new exit (range 5) 926 | -10/Mines | Discovered new exit (range 9) 935 | -10/Mines | Discovered new exit (range 7) 1081 | -10/Mines | Learned location of Zion (-7) 1425 | -10/Mines | Entered Materials 1425 | -9/Materials | Evolved 2 slots: Propulsion x1, Weapon x1 1426 | -9/Materials | Identified exit to Storage 1528 | -9/Materials | Discovered new exit (range 14) 1831 | -9/Materials | Lost 3 parts (2n1w) 2101 | -9/Materials | Discovered new exit (range 16) 2410 | -9/Materials | Discovered new exit (range 3) 2521 | -9/Materials | Discovered exit to Storage (range 16) 2645 | -9/Materials | Entered Storage 3004 | -9/Storage | Build established: Tank 3568 | -9/Storage | Met a pair of Derelict thieves 3668 | -9/Storage | Core integrity fell below 50% 3721 | -9/Storage | Discovered new exit (range 8) 3845 | -9/Storage | First assault squad dispatched 3972 | -9/Storage | Entered Materials 3972 | -8/Materials | Accompanied by 1 ally 3972 | -8/Materials | Evolved 2 slots: Utility x2 4106 | -8/Materials | Build established: Scavenger-Tank 4283 | -8/Materials | Lost 5 parts (2n3w) 4631 | -8/Materials | Garrison activated, responded to threat 4854 | -8/Materials | Discovered new exit (range 9) 4901 | -8/Materials | Entered Factory 4901 | -7/Factory | Evolved 2 slots: Propulsion x1, Utility x1 4942 | -7/Factory | Build established: Gunner 5240 | -7/Factory | Discovered new exit (range 6) 5243 | -7/Factory | Entered Lower Caves 5275 | -7/Lower Caves | Attacked by a delusional Derelict stockpiling parts 5320 | -7/Lower Caves | Encountered a Warlord checkpoint 5330 | -7/Lower Caves | Identified exit to Lower Caves 5377 | -7/Lower Caves | Spotted B-75 Beast 5663 | -7/Lower Caves | Entered another Lower Caves area 5689 | -7/Lower Caves | Learned Factory emergency access door positions 5695 | -7/Lower Caves | Attracted the attention of an 0b10 checkpoint 5769 | -7/Lower Caves | Spotted B-75 Beast 5833 | -7/Lower Caves | Destroyed B-75 Beast 5862 | -7/Lower Caves | Lost 7 parts (2n3u2w) 6484 | -7/Lower Caves | Discovered new exit (range 9) 6495 | -7/Lower Caves | Entered Factory 6495 | -6/Factory | Evolved 2 slots: Power x1, Utility x1 6692 | -6/Factory | Build established: Mutant 6756 | -6/Factory | Fabricated Cld. VTOL Module? 6804 | -6/Factory | Discovered new exit (range 7) 6807 | -6/Factory | Entered Lower Caves 6809 | -6/Lower Caves | Learned Factory stockpile data 6831 | -6/Lower Caves | Encountered a Warlord checkpoint 6934 | -6/Lower Caves | Found DCF Scrap (15 items) 7228 | -6/Lower Caves | Build established: Derelict-Mutant 7320 | -6/Lower Caves | Identified exit to Lower Caves 7381 | -6/Lower Caves | Entered another Lower Caves area 7381 | -6/Lower Caves | Discovered new exit (range 5) 7580 | -6/Lower Caves | Spotted B-75 Beast 7643 | -6/Lower Caves | Lost 3 parts (1p1n1w) 7674 | -6/Lower Caves | Identified exit to Data Miner 7905 | -6/Lower Caves | Entered Data Miner 7905 | -6/Data Miner | Discovered new exit (range 6) 7930 | -6/Data Miner | Met Data Miner 7955 | -6/Data Miner | Learned location of Section 7 (-3) 7955 | -6/Data Miner | Acquired the access code to Warlord's prototype stash 7978 | -6/Data Miner | Received God Mode back door access code from Data Miner 8007 | -6/Data Miner | Entered Proximity Caves 8221 | -5/Proximity Caves | Core integrity fell below 50% 8293 | -5/Proximity Caves | Spotted B-75 Beast 8294 | -5/Proximity Caves | Released all parts (7) 8298 | -5/Proximity Caves | Escorted by Enhanced Grunt 8300 | -5/Proximity Caves | Core integrity fell below 20% 8329 | -5/Proximity Caves | Destroyed by S-27 Virus with Autogun Last Messages --------------- 08240_ The unstable cave ceiling collapses. 08255_ Searching scrap... 08255_ Found System Guard. 08255_ Found 69 Matter. 08256_ Acquired 69 matter. 08257_ The unstable cave ceiling collapses. 08260_ Acquired System Guard. 08261_ The unstable cave ceiling collapses. 08289_ Imp. Trap Scanner destroyed. 08290_ S-27 Virus destroyed. 08291_ Lrn. Missile Launcher destroyed. 08294_ Lgt. Nuclear Core fries itself beyond repair. 08294_ Released Lrg. Storage Unit. 08294_ Released Arm. Leg. 08294_ Released Adv. Targeting Computer. 08294_ Released Cld. VTOL Module. 08294_ Released Hvy. Pick. 08296_ Knocked back. 08298_ Enhanced Grunt: "Protecting LRC-V3." 08303_ Acquired 4 matter. Map ----- +----------------------------------------------------+ | ?????????????????????????????????????????????????? | | ?????????????????????????????????????????????????? | | ?????????????????????????????????????????????????? | | ?????????????????????????????????????????????????? | | ?????????????????????????????????????????????????? | | ?????????????????????????????????????????????????? | | ?????????????????????????????????????????????????? | | ?????????????????????????????????????????????????? | | ?????????????????????????????????????????????????? | | ?????????????????????????????????????????????????? | | ?????????????????????????????????????????????????? | | ?????????????????????????????????????????????????? | | ?????????????????????????????????????????????????? | | ?????????????????????????????????????????????????? | | ?????????????????????????????????????????????????? | | ?????????????????????????????????????????????????? | | ?????????????????????????????????????????????????? | | ?????????????????????????????????????????????????? | | ?????????????????????????????????????????????????? | | ??????????????? ???????????????????????????????? | | ??????????????? ?????????####?????????????????? | | ???????????????? ???????## #?????????????????? | | ?????????????????# ????### #?????????????????? | | ??????????????????# ##### #??????????????????? | | ???????????????????# #??????????????????? | | ???????????????##### @ ##??????????????????? | | ???????????????# ##???????????????????? | | ??????????????# ## #????????????????????? | | ??????????????# ??# #????????????????????? | | ??????????????## ????# #????????????????????? | | ???????????????##??????# #????????????????????? | | ???????????? ?????????## #????????????????????? | | ??????###?? ?????????# #????????????????????? | | ?????## ## ??????????# #????????????????????? | | #????# ?????????## #????????????????????? | | #????? ????????## s #????????????????????? | | #????? ???????## #????????????????????? | | #?????? ???????## #????????????????????? | | #??????# ?????### s #????????????????????? | | ???????# ?#### ## #????????????????????? | | ???????# ### ###### ##???????????????????? | | ????????# ## ##### #???????????????????? | | #???????# ### #???????????????????? | | ##?????## ## #???????????????????? | | ####### ## #???????????????????? | | ##" ## ### #???????????????????? | | ######## #### #???????????????????? | | #??##### ## ### #???????????????????? | | #####??# #?#####???????????????????? | | ???????# #?????????????????????????? | +----------------------------------------------------+ Best States ------------- Heat Dissipation 59 Energy Generation 27 Energy Capacity 480 Matter Stores 300 Matter Capacity 300 Sight Range 16 Terrain Scan Density 10 Additional Mass Support 9 Armor Coverage 300 Resistance: KI 30 Evasion (%) 63 Targeting Accuracy 48 Item Schematics ----------------- Cryofiber Web | -9/Materials | Scanalyzed Cld. VTOL Module | -7/Factory | Scanalyzed Combat Drone Bay | -6/Data Miner | Free Lgt. Regenerative Plating | -6/Data Miner | Free Cld. Gravmag System | -6/Data Miner | Free Imp. Matter Compressor | -6/Data Miner | Free Neutron Cannon | -6/Data Miner | Free Myomer Leg | -6/Data Miner | Free Adv. Power Amplifier | -6/Data Miner | Free Hyp. Mass Driver | -6/Data Miner | Free Smartbomb Launcher | -6/Data Miner | Free Hyb. Antimatter Reactor | -6/Data Miner | Free Imp. Thunder Leg | -6/Data Miner | Free Robot Schematics ------------------ M-22 Extractor | -6/Data Miner | Free B-60 Warrior | -6/Data Miner | Free H-66 Slayer | -6/Data Miner | Free S-27 Virus | -6/Data Miner | Free D-63 Destroyer | -6/Data Miner | Free M-30 Cleanser | -6/Data Miner | Free L-61 Swordsman | -6/Data Miner | Free Fabricated ------------ Cld. VTOL Module | x1 | -6/Factory Repaired ---------- Nothing Alien Tech Used ----------------- None Achievements -------------- Perfect Aim Challenges ------------ None Game ------ Seed ThiefDecoyTube Manual? 0 Play Time 01:11:07 Cumulative 118.4 hours Start 2025.08.04 @ 19:52:13 End 2025.08.04 @ 21:13:05 Sessions 1 Manual Loads 0 Difficulty Rogue Special Mode None Game No. 181 Rogue 181 Adventurer 0 Explorer 0 Win Type - Total 1 Types 1/0/0/0/0/0/0/0/0/0 Lore% 68 Gallery% 59 Achievement% 51 Wizard Run 0 Options --------- Layout 0 ASCII 0 Keyboard 0 Movement Mouse Keybinds 0 Fullscreen 1 Font 16/SmallcapsGlow Map View 75x55 Zoom Use 0% Tactical HUD 1 Map Filters NONE Filters NONE Steam 1 RUN: da6b3cc9-cdde-447c-8122-a069437921f3